bitfinex/quotes_BTCUSD_20241027
["timestamp","ask_amount","ask_price","bid_price","bid_amount"]
[1730015633535,0.13207084,67188.0,67187.0,0.23601505]
[1730015633769,0.13207172,67188.0,67187.0,0.23601505]
[1730015634003,0.11811496,67188.0,67187.0,0.23601505]
[1730015634209,0.13207171,67188.0,67187.0,0.23601505]
[1730015634860,0.13207117,67188.0,67187.0,0.23601505]
[1730015635553,0.08741268,67188.0,67187.0,0.23601505]
[1730015635772,0.13207117,67188.0,67187.0,0.23601505]
[1730015636026,0.08741268,67188.0,67187.0,0.23601505]
[1730015636243,0.09857839,67188.0,67187.0,0.23601505]
[1730015639109,0.09857839,67188.0,67187.0,0.38651886]
[1730015639318,0.09857839,67188.0,67187.0,0.17651886]
[1730015639529,0.09857839,67188.0,67187.0,0.32535686]
[1730015639748,0.02594446,67188.0,67187.0,0.32535686]
[1730015640847,0.01478073,67188.0,67187.0,0.32535686]
[1730015641057,0.01198898,67188.0,67187.0,0.32535686]
[1730015641293,0.02594771,67188.0,67187.0,0.32535686]
[1730015642793,0.02594771,67188.0,67187.0,0.59013391]
[1730015643015,0.02594771,67188.0,67187.0,0.59343672]
[1730015643226,0.01198898,67188.0,67187.0,0.59343672]
[1730015643442,0.000822,67188.0,67187.0,0.59343672]
[1730015643868,0.000822,67188.0,67187.0,0.56742167]
[1730015651186,0.000822,67188.0,67187.0,0.56906567]
[1730015670637,0.00031749,67192.0,67191.0,0.148829]
[1730015670877,0.01148311,67192.0,67191.0,0.29933281]
[1730015678050,0.00031749,67192.0,67191.0,0.29933281]
[1730015678268,0.01148895,67192.0,67191.0,0.29933281]
[1730015678736,0.01148895,67192.0,67191.0,0.38650986]
[1730015681713,0.01148894,67192.0,67191.0,0.38650986]
[1730015681967,0.00031749,67192.0,67191.0,0.38650986]
[1730015682175,0.01148894,67192.0,67191.0,0.38650986]
[1730015682631,0.01148893,67192.0,67191.0,0.38650986]
[1730015685424,0.00031749,67192.0,67191.0,0.38650986]
[1730015685649,0.01148893,67192.0,67191.0,0.38650986]
[1730015689317,0.08471251,67192.0,67191.0,0.38650986]
[1730015696377,0.07354107,67192.0,67191.0,0.38650986]
[1730015696629,0.08471255,67192.0,67191.0,0.38650986]
[1730015703290,0.08471255,67192.0,67191.0,0.29933281]
[1730015703521,0.08471255,67192.0,67191.0,0.38650986]
[1730015706591,0.08471261,67192.0,67191.0,0.38650986]
[1730015707059,0.07354107,67192.0,67191.0,0.38650986]
[1730015707273,0.08471262,67192.0,67191.0,0.38650986]
[1730015712991,0.08471262,67192.0,67191.0,0.48590986]
[1730015714713,0.08471262,67192.0,67191.0,0.48795986]
[1730015716263,0.08471262,67192.0,67191.0,0.49126267]
[1730015717576,0.07354107,67192.0,67191.0,0.49126267]
[1730015717807,0.08471261,67192.0,67191.0,0.49126267]
[1730015725123,0.08471262,67192.0,67191.0,0.49126267]
[1730015725358,0.07354107,67192.0,67191.0,0.49126267]
[1730015725620,0.08471262,67192.0,67191.0,0.30468562]
[1730015725827,0.08471262,67192.0,67191.0,0.39186267]
[1730015726275,0.08471262,67192.0,67191.0,0.38855986]
[1730015730603,0.12939864,67192.0,67191.0,0.38855986]
[1730015730817,0.1433632,67192.0,67191.0,0.38855986]
[1730015732706,0.1433632,67192.0,67191.0,0.30138281]
[1730015735996,0.14336064,67192.0,67191.0,0.30138281]
[1730015736208,0.11822709,67192.0,67191.0,0.30138281]
[1730015736454,0.14335869,67192.0,67191.0,0.30138281]
[1730015737579,0.09867267,67192.0,67191.0,0.30138281]
[1730015737811,0.09867267,67192.0,67191.0,0.00205]
[1730015737812,0.80360246,67192.0,67191.0,0.00205]
[1730015738028,0.7461308,67192.0,67191.0,0.00205]
[1730015738667,0.74601696,67192.0,67191.0,0.00205]
[1730015739553,0.8799053,67192.0,67191.0,0.00205]
[1730015740461,0.74601696,67192.0,67191.0,0.00205]
[1730015742435,0.74599375,67192.0,67191.0,0.00205]
[1730015745104,0.74599375,67192.0,67191.0,0.08922705]
[1730015747130,0.59716675,67192.0,67191.0,0.08922705]
[1730015747826,0.70826057,67192.0,67191.0,0.08922705]
[1730015748556,0.70824969,67192.0,67191.0,0.08922705]
[1730015750640,0.59684119,67192.0,67191.0,0.08922705]
[1730015752235,0.59678551,67192.0,67191.0,0.08922705]
[1730015753573,0.68587598,67192.0,67191.0,0.08922705]
[1730015754013,0.66077847,67192.0,67191.0,0.08922705]
[1730015754254,0.68583159,67192.0,67191.0,0.08922705]
[1730015754491,0.67191319,67192.0,67191.0,0.08922705]
[1730015754721,0.68580414,67192.0,67191.0,0.08922705]
[1730015755191,0.53530033,67192.0,67191.0,0.08922705]
[1730015756737,0.43640033,67192.0,67191.0,0.08922705]
[1730015756982,0.4363869,67192.0,67191.0,0.08922705]
[1730015757884,0.43639067,67192.0,67191.0,0.08922705]
[1730015759601,0.43639067,67192.0,67191.0,0.00205]
[1730015760956,0.43638475,67192.0,67191.0,0.00205]
[1730015761897,0.35378475,67192.0,67191.0,0.00205]
[1730015763057,0.35378475,67192.0,67191.0,0.08922705]
[1730015763972,0.35381156,67192.0,67191.0,0.08922705]
[1730015767579,0.26473354,67192.0,67191.0,0.08922705]
[1730015769601,0.26478955,67192.0,67191.0,0.08922705]
[1730015769819,0.26478955,67192.0,67191.0,0.00205]
[1730015770465,0.37617501,67192.0,67191.0,0.00205]
[1730015771174,0.36223962,67192.0,67191.0,0.00205]
[1730015771405,0.37620511,67192.0,67191.0,0.00205]
[1730015771641,0.37622948,67192.0,67191.0,0.00205]
[1730015772308,0.37622948,67192.0,67191.0,0.08922705]
[1730015774179,0.37633271,67192.0,67191.0,0.08922705]
[1730015774702,0.26490557,67192.0,67191.0,0.08922705]
[1730015774925,0.26490603,67192.0,67191.0,0.08922705]
[1730015775379,0.35405855,67192.0,67191.0,0.08922705]
[1730015775847,0.26490603,67192.0,67191.0,0.08922705]
[1730015776283,0.35406715,67192.0,67191.0,0.08922705]
[1730015776507,0.26490603,67192.0,67191.0,0.08922705]
[1730015777607,0.37634712,67192.0,67191.0,0.08922705]
[1730015778529,0.35120849,67192.0,67191.0,0.08922705]
[1730015778751,0.36516942,67192.0,67191.0,0.08922705]
[1730015778970,0.37633816,67192.0,67191.0,0.08922705]
[1730015779631,0.26489707,67192.0,67191.0,0.08922705]
[1730015786141,0.25093614,67192.0,67191.0,0.08922705]
[1730015786373,0.26489448,67192.0,67191.0,0.08922705]
[1730015788183,0.265246,67192.0,67191.0,0.08922705]
[1730015788426,0.24011892,67192.0,67191.0,0.08922705]
[1730015790190,0.07523826,67192.0,67191.0,0.08922705]
[1730015790518,0.08919628,67192.0,67191.0,0.08922705]
[1730015790750,0.10036266,67192.0,67191.0,0.08922705]
[1730015791395,0.26524165,67192.0,67191.0,0.08922705]
[1730015791855,0.10036266,67192.0,67191.0,0.08922705]
[1730015792084,0.26524253,67192.0,67191.0,0.08922705]
[1730015794750,0.26524026,67192.0,67191.0,0.08922705]
[1730015795400,0.24011586,67192.0,67191.0,0.08922705]
[1730015795618,0.2652411,67192.0,67191.0,0.08922705]
[1730015806539,0.26524779,67192.0,67191.0,0.08922705]
[1730015810156,0.26525615,67192.0,67191.0,0.08922705]
[1730015813390,0.10037855,67192.0,67191.0,0.08922705]
[1730015813623,0.26528405,67192.0,67191.0,0.08922705]
[1730015813849,0.24014376,67192.0,67191.0,0.08922705]
[1730015814089,0.26528416,67192.0,67191.0,0.08922705]
[1730015814336,0.38533571,67192.0,67191.0,0.08922705]
[1730015814579,0.3993026,67192.0,67191.0,0.08922705]
[1730015815261,0.39930262,67192.0,67191.0,0.08922705]
[1730015817832,0.39930265,67192.0,67191.0,0.08922705]
[1730015819512,0.39930265,67192.0,67190.0,0.00201]
[1730015819771,0.19004595,67191.0,67190.0,0.00201]
[1730015820225,0.26660118,67191.0,67190.0,0.00201]
[1730015820446,0.40061962,67191.0,67190.0,0.00201]
[1730015823945,0.40061968,67191.0,67190.0,0.00201]
[1730015826164,0.40076058,67191.0,67190.0,0.00201]
[1730015826403,0.40076058,67191.0,67190.0,0.003654]
[1730015830728,0.40076141,67191.0,67190.0,0.003654]
[1730015831747,0.40076132,67191.0,67190.0,0.003654]
[1730015832187,0.26667934,67191.0,67190.0,0.003654]
[1730015833340,0.40075963,67191.0,67190.0,0.003654]
[1730015838698,0.40075828,67191.0,67190.0,0.003654]
[1730015839167,0.40158028,67191.0,67190.0,0.003654]
[1730015844580,0.4015527,67191.0,67190.0,0.003654]
[1730015849494,0.40154817,67191.0,67190.0,0.003654]
[1730015849745,0.4015479,67191.0,67190.0,0.003654]
[1730015849976,0.26748107,67191.0,67190.0,0.003654]
[1730015851839,0.24234227,67191.0,67190.0,0.003654]
[1730015852930,0.49056846,67191.0,67190.0,0.003654]
[1730015853150,0.49256846,67191.0,67190.0,0.003654]
[1730015853359,0.51770642,67191.0,67190.0,0.003654]
[1730015853780,0.35274138,67191.0,67190.0,0.003654]
[1730015854217,0.51767388,67191.0,67190.0,0.003654]
[1730015854410,0.5176731,67191.0,67190.0,0.003654]
[1730015854601,0.56293664,67191.0,67190.0,0.003654]
[1730015855266,0.38403859,67191.0,67190.0,0.003654]
[1730015855450,0.39521031,67191.0,67190.0,0.003654]
[1730015856061,0.38403859,67191.0,67190.0,0.003654]
[1730015856836,0.39521035,67191.0,67190.0,0.003654]
[1730015858106,0.39321035,67191.0,67190.0,0.003654]
[1730015858321,0.40916585,67191.0,67190.0,0.003654]
[1730015858535,0.42058182,67191.0,67190.0,0.003654]
[1730015858757,0.37531828,67191.0,67190.0,0.003654]
[1730015858975,0.42055049,67191.0,67190.0,0.003654]
[1730015859188,0.4222253,67191.0,67190.0,0.003654]
[1730015859649,0.37699309,67191.0,67190.0,0.003654]
[1730015860103,0.52582209,67191.0,67190.0,0.003654]
[1730015860572,0.37499309,67191.0,67190.0,0.003654]
[1730015860789,0.52582209,67191.0,67190.0,0.003654]
[1730015860997,0.37699309,67191.0,67190.0,0.003654]
[1730015861412,0.52582209,67191.0,67190.0,0.003654]
[1730015862521,0.51186659,67191.0,67190.0,0.003654]
[1730015862735,0.5258102,67191.0,67190.0,0.003654]
[1730015863195,0.36356523,67191.0,67190.0,0.003654]
[1730015864300,0.52830987,67191.0,67190.0,0.003654]
[1730015864518,0.53030987,67191.0,67190.0,0.003654]
[1730015865901,0.52830987,67191.0,67190.0,0.003654]
[1730015866336,0.51436626,67191.0,67190.0,0.003654]
[1730015866550,0.52830893,67191.0,67190.0,0.003654]
[1730015867003,0.5171373,67191.0,67190.0,0.003654]
[1730015869006,0.51712659,67191.0,67190.0,0.003654]
[1730015869717,0.41942659,67191.0,67190.0,0.003654]
[1730015869947,0.41940986,67191.0,67190.0,0.003654]
[1730015870409,0.41940928,67191.0,67190.0,0.003654]
[1730015873552,0.40825425,67191.0,67190.0,0.003654]
[1730015873783,0.5532957,67191.0,67190.0,0.003654]
[1730015874012,0.55329569,67191.0,67190.0,0.003654]
[1730015874914,0.40279188,67191.0,67190.0,0.003654]
[1730015875154,0.26890734,67191.0,67190.0,0.003654]
[1730015875626,0.40279188,67191.0,67190.0,0.003654]
[1730015877323,0.39163498,67191.0,67190.0,0.003654]
[1730015877562,0.40279363,67191.0,67190.0,0.003654]
[1730015881485,0.26890909,67191.0,67190.0,0.003654]
[1730015881967,0.40279576,67191.0,67190.0,0.003654]
[1730015882398,0.26890909,67191.0,67190.0,0.003654]
[1730015882859,0.4027989,67191.0,67190.0,0.003654]
[1730015883059,0.26890909,67191.0,67190.0,0.003654]
[1730015883508,0.40279916,67191.0,67190.0,0.003654]
[1730015883724,0.26892201,67191.0,67190.0,0.003654]
[1730015884845,0.26892238,67191.0,67190.0,0.003654]
[1730015886146,0.26894816,67191.0,67190.0,0.003654]
[1730015886617,0.40285521,67191.0,67190.0,0.003654]
[1730015890650,0.40289936,67191.0,67190.0,0.003654]
[1730015890871,0.37778475,67191.0,67190.0,0.003654]
[1730015891101,0.38894863,67191.0,67190.0,0.003654]
[1730015891327,0.26898175,67191.0,67190.0,0.003654]
[1730015891549,0.28014638,67191.0,67190.0,0.003654]
[1730015891766,0.29131101,67191.0,67190.0,0.003654]
[1730015894828,0.29133854,67191.0,67190.0,0.003654]
[1730015897013,0.26901003,67191.0,67190.0,0.003654]
[1730015898392,0.25505424,67191.0,67190.0,0.003654]
[1730015898614,0.26901386,67191.0,67190.0,0.003654]
[1730015899933,0.26902333,67191.0,67190.0,0.003654]
[1730015901260,0.40297643,67191.0,67190.0,0.003654]
[1730015902411,0.26902333,67191.0,67190.0,0.003654]
[1730015909846,0.26902361,67191.0,67190.0,0.003654]
[1730015913441,0.25785849,67191.0,67190.0,0.003654]
[1730015913662,0.269026,67191.0,67190.0,0.003654]
[1730015913875,0.26908381,67191.0,67190.0,0.003654]
[1730015915870,0.41791281,67191.0,67190.0,0.003654]
[1730015916082,0.26908381,67191.0,67190.0,0.003654]
[1730015916746,0.26908453,67191.0,67190.0,0.003654]
[1730015916957,0.25792624,67191.0,67190.0,0.003654]
[1730015917170,0.24396611,67191.0,67190.0,0.003654]
[1730015917388,0.26909434,67191.0,67190.0,0.003654]
[1730015918673,0.26909383,67191.0,67190.0,0.003654]
[1730015923276,0.26908399,67191.0,67190.0,0.003654]
[1730015924775,0.25512386,67191.0,67190.0,0.003654]
[1730015924986,0.26907868,67191.0,67190.0,0.003654]
[1730015927153,0.41790768,67191.0,67190.0,0.003654]
[1730015927411,0.26907868,67191.0,67190.0,0.003654]
[1730015927862,0.26906325,67191.0,67190.0,0.003654]
[1730015928297,0.26906168,67191.0,67190.0,0.003654]
[1730015930648,0.24889029,67191.0,67190.0,0.003654]
[1730015939662,0.23772567,67191.0,67190.0,0.003654]
[1730015939896,0.24889106,67191.0,67190.0,0.003654]
[1730015941015,0.24889214,67191.0,67190.0,0.003654]
[1730015942087,0.23493541,67191.0,67190.0,0.003654]
[1730015942302,0.24889248,67191.0,67190.0,0.003654]
[1730015947803,0.24889598,67191.0,67190.0,0.003654]
[1730015949674,0.23493992,67191.0,67190.0,0.003654]
[1730015949903,0.24889729,67191.0,67190.0,0.003654]
[1730015953246,0.22377438,67191.0,67190.0,0.003654]
[1730015953480,0.24889809,67191.0,67190.0,0.003654]
[1730015953690,0.24889817,67191.0,67190.0,0.003654]
[1730015954348,0.24889982,67191.0,67190.0,0.003654]
[1730015957001,0.23773365,67191.0,67190.0,0.003654]
[1730015957225,0.24890041,67191.0,67190.0,0.003654]
[1730015960762,0.22377603,67191.0,67190.0,0.003654]
[1730015961006,0.2489034,67191.0,67190.0,0.003654]
[1730015968059,0.23494375,67191.0,67190.0,0.003654]
[1730015968309,0.24890473,67191.0,67190.0,0.003654]
[1730015968556,0.22378455,67191.0,67190.0,0.003654]
[1730015968781,0.24891325,67191.0,67190.0,0.003654]
[1730015972100,0.24891256,67191.0,67190.0,0.003654]
[1730015972974,0.24891571,67191.0,67190.0,0.003654]
[1730015975803,0.2237877,67191.0,67190.0,0.003654]
[1730015976010,0.24891439,67191.0,67190.0,0.003654]
[1730015977501,0.2237877,67191.0,67190.0,0.003654]
[1730015978135,0.05890303,67191.0,67190.0,0.003654]
[1730015978581,0.07007055,67191.0,67190.0,0.003654]
[1730015978758,0.08402992,67191.0,67190.0,0.003654]
[1730015978967,0.24892208,67191.0,67190.0,0.003654]
[1730015979198,0.23775456,67191.0,67190.0,0.003654]
[1730015979404,0.23496272,67191.0,67190.0,0.003654]
[1730015979879,0.23775462,67191.0,67190.0,0.003654]
[1730015981491,0.22379519,67191.0,67190.0,0.003654]
[1730015981688,0.23496271,67191.0,67190.0,0.003654]
[1730015983392,0.05890303,67191.0,67190.0,0.003654]
[1730015983599,0.07007052,67191.0,67190.0,0.003654]
[1730015985476,0.08402991,67191.0,67190.0,0.003654]
[1730015988097,0.24892425,67191.0,67190.0,0.003654]
[1730015989019,0.2489243,67191.0,67190.0,0.003654]
[1730015992687,0.24892456,67191.0,67190.0,0.003654]
[1730015993033,0.23496486,67191.0,67190.0,0.003654]
[1730015993429,0.24892447,67191.0,67190.0,0.003654]
[1730015996737,0.24892475,67191.0,67190.0,0.003654]
[1730015997415,0.24892513,67191.0,67190.0,0.003654]
[1730015998687,0.24892754,67191.0,67190.0,0.003654]
[1730016000402,0.05890303,67191.0,67190.0,0.003654]
[1730016000631,0.07286309,67191.0,67190.0,0.003654]
[1730016000842,0.23775929,67191.0,67190.0,0.003654]
[1730016001333,0.24892734,67191.0,67190.0,0.003654]
[1730016002651,0.08403114,67191.0,67190.0,0.003654]
[1730016002863,0.05890303,67191.0,67190.0,0.003654]
[1730016003097,0.05890303,67191.0,67188.0,0.15273144]
[1730016003098,0.12032823,67191.0,67188.0,0.15273144]
[1730016003301,0.01396027,67190.0,67188.0,0.15273144]
[1730016003527,0.0614252,67189.0,67188.0,0.15273144]
[1730016006456,0.06312239,67189.0,67188.0,0.08717705]
[1730016006668,0.21195539,67189.0,67188.0,0.08717705]
[1730016006890,0.21195539,67189.0,67187.0,0.001644]
[1730016006891,0.15053319,67188.0,67187.0,0.001644]
[1730016007095,0.51093396,67188.0,67187.0,0.08882105]
[1730016008815,0.49697369,67188.0,67187.0,0.08882105]
[1730016009451,0.34813769,67188.0,67187.0,0.08882105]
[1730016010224,0.34815233,67188.0,67187.0,0.08882105]
[1730016010330,0.34815683,67188.0,67187.0,0.08882105]
[1730016010581,0.34815658,67188.0,67187.0,0.08882105]
[1730016013359,0.34821607,67188.0,67187.0,0.08882105]
[1730016013823,0.21414781,67188.0,67187.0,0.08882105]
[1730016017729,0.2586038,67188.0,67187.0,0.23765905]
[1730016017996,0.093637,67188.0,67187.0,0.41385905]
[1730016018217,0.25860011,67188.0,67187.0,0.3803359]
[1730016018469,0.21414373,67188.0,67187.0,0.3803359]
[1730016018654,0.25860366,67188.0,67187.0,0.3803359]
[1730016018884,0.23625833,67188.0,67187.0,0.3803359]
[1730016021331,0.21112023,67188.0,67187.0,0.3803359]
[1730016021562,0.23625698,67188.0,67187.0,0.3803359]
[1730016022639,0.23625451,67188.0,67187.0,0.3803359]
[1730016023588,0.23625451,67188.0,67187.0,0.3811579]
[1730016025015,0.23625396,67188.0,67187.0,0.2323199]
[1730016025203,0.2222894,67188.0,67187.0,0.3811579]
[1730016025422,0.23625394,67188.0,67187.0,0.3811579]
[1730016027451,0.23625259,67188.0,67187.0,0.3811579]
[1730016028118,0.23625259,67188.0,67187.0,0.3014579]
[1730016028341,0.22508095,67188.0,67187.0,0.3014579]
[1730016028561,0.23625225,67188.0,67187.0,0.3014579]
[1730016028780,0.25021627,67188.0,67187.0,0.3014579]
[1730016032509,0.25021649,67188.0,67187.0,0.3014579]
[1730016033864,0.23625195,67188.0,67187.0,0.3014579]
[1730016035178,0.23789595,67188.0,67187.0,0.3014579]
[1730016037894,0.23789177,67188.0,67187.0,0.3014579]
[1730016040211,0.22392748,67188.0,67187.0,0.3014579]
[1730016040459,0.23789334,67188.0,67187.0,0.3014579]
[1730016040700,0.23789334,67188.0,67187.0,0.24616]
[1730016044567,0.21275623,67188.0,67187.0,0.24616]
[1730016045393,0.04780112,67188.0,67187.0,0.24616]
[1730016045616,0.0589744,67188.0,67187.0,0.24616]
[1730016046883,0.0589744,67188.0,67187.0,0.33333705]
[1730016049645,0.07294101,67188.0,67187.0,0.33333705]
[1730016050349,0.07294106,67188.0,67187.0,0.33333705]
[1730016051499,0.23789639,67188.0,67187.0,0.33333705]
[1730016051725,0.23789639,67188.0,67187.0,0.18449905]
[1730016052162,0.23789631,67188.0,67187.0,0.33333705]
[1730016052831,0.23789631,67188.0,67187.0,0.18449905]
[1730016053486,0.23789631,67188.0,67187.0,0.33333705]
[1730016054147,0.23789638,67188.0,67187.0,0.33333705]
[1730016055558,0.23789638,67188.0,67187.0,0.18449905]
[1730016056277,0.23789638,67188.0,67187.0,0.33333705]
[1730016056936,0.23789638,67188.0,67187.0,0.18449905]
[1730016058116,0.2378968,67188.0,67187.0,0.18449905]
[1730016058579,0.22393003,67188.0,67187.0,0.18449905]
[1730016059013,0.23789708,67188.0,67187.0,0.18449905]
[1730016060590,0.23789708,67188.0,67187.0,0.33333705]
[1730016061018,0.23792445,67188.0,67187.0,0.33333705]
[1730016062478,0.23792445,67188.0,67187.0,0.41113705]
[1730016062479,0.23622726,67188.0,67187.0,0.41113705]
[1730016062916,0.16062547,67188.0,67187.0,0.41113705]
[1730016063128,0.32560809,67188.0,67187.0,0.41113705]
[1730016063377,0.13825581,67188.0,67187.0,0.41113705]
[1730016064297,0.07124464,67188.0,67187.0,0.41113705]
[1730016064516,0.13825581,67188.0,67187.0,0.41113705]
[1730016064736,0.12428876,67188.0,67187.0,0.41113705]
[1730016064959,0.13824568,67188.0,67187.0,0.41113705]
[1730016065180,0.07123451,67188.0,67187.0,0.41113705]
[1730016065433,0.13824568,67188.0,67187.0,0.41113705]
[1730016067232,0.07123451,67188.0,67187.0,0.41113705]
[1730016068144,0.13824568,67188.0,67187.0,0.41113705]
[1730016068810,0.13824141,67188.0,67187.0,0.41113705]
[1730016069927,0.13820576,67188.0,67187.0,0.41113705]
[1730016071244,0.07123024,67188.0,67187.0,0.41113705]
[1730016072662,0.05726474,67188.0,67187.0,0.41113705]
[1730016072922,0.04610393,67188.0,67187.0,0.41113705]
[1730016073142,0.07121575,67188.0,67187.0,0.41113705]
[1730016076488,0.07121542,67188.0,67187.0,0.41113705]
[1730016077160,0.13818205,67188.0,67187.0,0.41113705]
[1730016078741,0.07121542,67188.0,67187.0,0.41113705]
[1730016079198,0.02675549,67188.0,67187.0,0.41113705]
[1730016079699,0.02675549,67188.0,67187.0,0.56164086]
[1730016079935,0.001644,67188.0,67187.0,0.56164086]
[1730016080148,0.02675304,67188.0,67187.0,0.56164086]
[1730016083231,0.02675304,67188.0,67187.0,0.56494367]
[1730016083693,0.01280357,67188.0,67187.0,0.56494367]
[1730016083901,0.02674746,67188.0,67187.0,0.56494367]
[1730016087741,0.02674684,67188.0,67187.0,0.56494367]
[1730016090049,0.001644,67188.0,67187.0,0.56494367]
[1730016093481,0.000821,67193.0,67187.0,0.56494367]
[1730016093482,0.38024999,67210.0,67205.0,0.324698]
[1730016093691,0.38024999,67210.0,67205.0,0.35342907]
[1730016093692,0.22408779,67210.0,67205.0,0.35342907]
[1730016093925,0.03630197,67206.0,67205.0,0.35342907]
[1730016094149,0.01283877,67206.0,67205.0,0.35342907]
[1730016094863,0.01283193,67206.0,67205.0,0.35342907]
[1730016095330,0.00783193,67206.0,67205.0,0.35342907]
[1730016095557,0.001686,67210.0,67208.0,0.148791]
[1730016095792,0.001686,67210.0,67208.0,0.23596805]
[1730016103204,0.001686,67210.0,67208.0,0.32596805]
[1730016104336,0.001686,67210.0,67208.0,0.47647186]
[1730016110150,0.001686,67210.0,67208.0,0.38929481]
[1730016110363,0.001686,67210.0,67208.0,0.148791]
[1730016110793,0.00338319,67210.0,67208.0,0.148791]
[1730016115784,0.001686,67210.0,67208.0,0.148791]
[1730016118741,0.03288119,67209.0,67208.0,0.148791]
[1730016119663,0.02175059,67209.0,67208.0,0.148791]
[1730016119884,0.03289026,67209.0,67208.0,0.148791]
[1730016122065,0.007826,67209.0,67208.0,0.148791]
[1730016122287,0.03290592,67209.0,67208.0,0.148791]
[1730016122512,0.05794706,67209.0,67208.0,0.148791]
[1730016122731,0.03290592,67209.0,67208.0,0.148791]
[1730016126046,0.007826,67209.0,67208.0,0.148791]
[1730016126257,0.01899045,67209.0,67208.0,0.148791]
[1730016126466,0.03294601,67209.0,67208.0,0.148791]
[1730016128686,0.05798715,67209.0,67208.0,0.148791]
[1730016129838,0.05797927,67209.0,67208.0,0.148791]
[1730016137352,0.04681832,67209.0,67208.0,0.148791]
[1730016137599,0.05797758,67209.0,67208.0,0.148791]
[1730016138338,0.10256623,67209.0,67208.0,0.148791]
[1730016139264,0.12486056,67209.0,67208.0,0.148791]
[1730016139953,0.05797758,67209.0,67208.0,0.148791]
[1730016140195,0.12493454,67209.0,67208.0,0.148791]
[1730016140631,0.12663173,67209.0,67208.0,0.148791]
[1730016141146,0.11547096,67209.0,67208.0,0.148791]
[1730016141359,0.07829719,67207.0,67206.0,0.150436]
[1730016141613,0.1675679,67207.0,67206.0,0.150436]
[1730016141821,0.38115579,67207.0,67206.0,0.150436]
[1730016142500,0.38115579,67207.0,67206.0,0.001642]
[1730016142716,0.26956086,67207.0,67206.0,0.150438]
[1730016143604,0.26956086,67207.0,67206.0,0.001642]
[1730016144699,0.43428748,67207.0,67206.0,0.001642]
[1730016145348,0.44544224,67207.0,67206.0,0.001642]
[1730016145559,0.54581993,67207.0,67206.0,0.001642]
[1730016146696,0.43428748,67207.0,67206.0,0.001642]
[1730016147127,0.44544042,67207.0,67206.0,0.001642]
[1730016147571,0.55695047,67207.0,67206.0,0.001642]
[1730016148272,0.55694963,67207.0,67206.0,0.150438]
[1730016148781,0.55694963,67207.0,67206.0,0.001642]
[1730016149468,0.55685038,67207.0,67206.0,0.001642]
[1730016150176,0.57078963,67207.0,67206.0,0.001642]
[1730016150857,0.55238935,67207.0,67206.0,0.001642]
[1730016152673,0.85668716,67207.0,67206.0,0.001642]
[1730016153630,0.83159581,67207.0,67206.0,0.001642]
[1730016153847,0.8566789,67207.0,67206.0,0.001642]
[1730016157849,0.85667539,67207.0,67206.0,0.001642]
[1730016158935,0.85653581,67207.0,67206.0,0.001642]
[1730016159843,0.85653051,67207.0,67206.0,0.001642]
[1730016161363,0.85652958,67207.0,67206.0,0.001642]
[1730016161577,0.85735058,67207.0,67206.0,0.001642]
[1730016164060,0.69257697,67207.0,67206.0,0.001642]
[1730016168793,0.69457697,67207.0,67206.0,0.001642]
[1730016170646,0.21857916,67207.0,67206.0,0.33281505]
[1730016170649,0.32998664,67207.0,67206.0,0.18401905]
[1730016170791,0.21857916,67207.0,67206.0,0.245638]
[1730016171003,0.30770615,67207.0,67206.0,0.096842]
[1730016171214,0.30770615,67207.0,67206.0,0.245638]
[1730016171437,0.3077076,67207.0,67206.0,0.245638]
[1730016172321,0.30772564,67207.0,67206.0,0.245638]
[1730016172738,0.30772564,67207.0,67206.0,0.096842]
[1730016172951,0.30773516,67207.0,67206.0,0.096842]
[1730016173392,0.2938052,67207.0,67206.0,0.096842]
[1730016173799,0.2826616,67207.0,67206.0,0.245638]
[1730016174459,0.20747511,67207.0,67206.0,0.245638]
[1730016174883,0.19352604,67207.0,67206.0,0.245638]
[1730016175735,0.20747594,67207.0,67206.0,0.096842]
[1730016175953,0.29662785,67207.0,67206.0,0.096842]
[1730016176152,0.20747594,67207.0,67206.0,0.096842]
[1730016176829,0.19352604,67207.0,67206.0,0.096842]
[1730016177011,0.20747681,67207.0,67206.0,0.096842]
[1730016177246,0.21863743,67207.0,67206.0,0.096842]
[1730016177461,0.33005688,67207.0,67206.0,0.096842]
[1730016177686,0.21863743,67207.0,67206.0,0.096842]
[1730016178138,0.21868834,67207.0,67206.0,0.096842]
[1730016179688,0.33014227,67207.0,67206.0,0.096842]
[1730016180344,0.21868834,67207.0,67206.0,0.096842]
[1730016180581,0.21869071,67207.0,67206.0,0.096842]
[1730016180983,0.33014464,67207.0,67206.0,0.096842]
[1730016181227,0.21869071,67207.0,67206.0,0.096842]
[1730016181437,0.33014464,67207.0,67206.0,0.096842]
[1730016181877,0.21869071,67207.0,67206.0,0.096842]
[1730016182962,0.19357695,67207.0,67206.0,0.096842]
[1730016183218,0.21868738,67207.0,67206.0,0.096842]
[1730016184976,0.33022175,67207.0,67206.0,0.096842]
[1730016185191,0.33022079,67207.0,67206.0,0.096842]
[1730016185399,0.21868642,67207.0,67206.0,0.096842]
[1730016186276,0.21883479,67207.0,67206.0,0.096842]
[1730016186971,0.20767391,67207.0,67206.0,0.096842]
[1730016187177,0.21883278,67207.0,67206.0,0.096842]
[1730016187391,0.22999151,67207.0,67206.0,0.096842]
[1730016194731,0.21883451,67207.0,67206.0,0.096842]
[1730016194942,0.22999476,67207.0,67206.0,0.096842]
[1730016197078,0.21883589,67207.0,67206.0,0.096842]
[1730016198448,0.19372532,67207.0,67206.0,0.096842]
[1730016198683,0.20489071,67207.0,67206.0,0.096842]
[1730016198900,0.230013,67207.0,67206.0,0.096842]
[1730016200671,0.21605617,67207.0,67206.0,0.096842]
[1730016200884,0.23001819,67207.0,67206.0,0.096842]
[1730016207296,0.2188528,67207.0,67206.0,0.096842]
[1730016209881,0.21885713,67207.0,67206.0,0.096842]
[1730016210070,0.21895418,67207.0,67206.0,0.096842]
[1730016210979,0.2189542,67207.0,67206.0,0.096842]
[1730016211697,0.21725701,67207.0,67206.0,0.32334581]
[1730016211907,0.21725701,67207.0,67206.0,0.55931886]
[1730016211908,0.05244311,67207.0,67206.0,0.55931886]
[1730016212369,0.02595305,67207.0,67206.0,0.55931886]
[1730016213266,0.02595305,67207.0,67206.0,0.64979872]
[1730016214862,0.02595305,67207.0,67206.0,0.56262167]
[1730016215133,0.02595305,67207.0,67206.0,0.64979872]
[1730016215377,0.01199081,67207.0,67206.0,0.56262167]
[1730016216052,0.01199081,67207.0,67206.0,0.64979872]
[1730016216694,0.000821,67207.0,67206.0,0.56262167]
[1730016216920,0.01199081,67207.0,67206.0,0.56262167]
[1730016217173,0.01199081,67207.0,67206.0,0.64979872]